[Event "*** Titled Tuesday Blitz"]
[Site "Chess.com"]
[Date "2018.08.07"]
[Round "4"]
[White "luca_va99"]
[Black "Caisachess"]
[Result "1-0"]
[WhiteElo "2458"]
[BlackElo "2241"]
[TimeControl "180+2"]
[EndTime "13:46:14 PDT"]
[Termination "luca_va99 won by resignation"]

1. d4 {[%clk 0:03:01.9]} 1... Nf6 {[%clk 0:03:00.7]} 2. Nc3 {[%clk 0:03:00.6]}
2... d5 {[%clk 0:02:59]} 3. Bf4 {[%clk 0:02:58.7]} 3... c6 {[%clk 0:02:59.8]} 4.
e3 {[%clk 0:02:39.7]} 4... Bf5 {[%clk 0:03:00.5]} 5. Bd3 {[%clk 0:02:39.2]} 5...
Bxd3 {[%clk 0:03:00.4]} 6. Qxd3 {[%clk 0:02:39.6]} 6... e6 {[%clk 0:03:00.4]} 7.
f3 {[%clk 0:02:38.4]} 7... Bd6 {[%clk 0:03:00.5]} 8. Bg3 {[%clk 0:02:39]} 8...
Bxg3+ {[%clk 0:03:00.2]} 9. hxg3 {[%clk 0:02:39.8]} 9... h6 {[%clk 0:03:01.3]}
10. O-O-O {[%clk 0:02:39.6]} 10... Nbd7 {[%clk 0:03:02.3]} 11. g4 {[%clk
0:02:39.6]} 11... Rg8 {[%clk 0:02:46.1]} 12. Nh3 {[%clk 0:02:34.6]} 12... Qc7
{[%clk 0:02:40.3]} 13. e4 {[%clk 0:02:30.4]} 13... O-O-O {[%clk 0:02:39.4]} 14.
e5 {[%clk 0:02:30.9]} 14... Ne8 {[%clk 0:02:27]} 15. g5 {[%clk 0:02:30.7]} 15...
h5 {[%clk 0:02:25.5]} 16. g6 {[%clk 0:02:28.3]} 16... f5 {[%clk 0:02:21.2]} 17.
Ng5 {[%clk 0:02:23.5]} 17... Qa5 {[%clk 0:02:12]} 18. Nxe6 {[%clk 0:02:21.1]}
18... Nc7 {[%clk 0:02:11.2]} 19. Nxd8 {[%clk 0:02:20.5]} 19... Rxd8 {[%clk
0:02:13.1]} 20. Qxf5 {[%clk 0:02:20.5]} 20... Kb8 {[%clk 0:02:10.5]} 21. Rxh5
{[%clk 0:02:18.6]} 21... Nb6 {[%clk 0:02:07.1]} 22. Rdh1 {[%clk 0:01:35.9]}
22... Nc4 {[%clk 0:01:59.7]} 23. Rh8 {[%clk 0:01:36]} 23... Ne8 {[%clk
0:02:00.8]} 24. Qf7 {[%clk 0:01:19.4]} 24... Qb4 {[%clk 0:01:57.7]} 25. Nd1
{[%clk 0:01:15.4]} 25... Qd2+ {[%clk 0:01:13.8]} 26. Kb1 {[%clk 0:01:13.6]} 1-0

[Event "*** Titled Tuesday Blitz"]
[Site "Chess.com"]
[Date "2018.08.07"]
[Round "4"]
[White "cool4chess"]
[Black "Marreuh"]
[Result "1-0"]
[WhiteElo "2111"]
[BlackElo "1990"]
[TimeControl "180+2"]
[EndTime "13:46:29 PDT"]
[Termination "cool4chess won by resignation"]

1. e4 {[%clk 0:03:01.9]} 1... c5 {[%clk 0:03:00.7]} 2. Nf3 {[%clk 0:03:02.2]}
2... d6 {[%clk 0:03:01.6]} 3. d4 {[%clk 0:03:03.5]} 3... cxd4 {[%clk 0:03:03.5]}
4. Nxd4 {[%clk 0:03:04.8]} 4... Nf6 {[%clk 0:03:05]} 5. Nc3 {[%clk 0:03:06.4]}
5... a6 {[%clk 0:03:06.3]} 6. Qe2 {[%clk 0:03:07.7]} 6... e5 {[%clk 0:02:59.1]}
7. Nf5 {[%clk 0:03:08.3]} 7... Bxf5 {[%clk 0:02:58]} 8. exf5 {[%clk 0:03:10.2]}
8... Nc6 {[%clk 0:02:54.3]} 9. g4 {[%clk 0:03:10]} 9... Nd4 {[%clk 0:02:49.3]}
10. Qd1 {[%clk 0:03:10.6]} 10... h5 {[%clk 0:02:16.1]} 11. g5 {[%clk 0:02:50.6]}
11... Nh7 {[%clk 0:02:13.7]} 12. g6 {[%clk 0:02:44.1]} 12... fxg6 {[%clk
0:02:08.6]} 13. fxg6 {[%clk 0:02:46]} 13... Nf6 {[%clk 0:02:09.6]} 14. Bg2
{[%clk 0:02:32.2]} 14... Ng4 {[%clk 0:02:01.4]} 15. h3 {[%clk 0:02:23.3]} 15...
Nh6 {[%clk 0:01:57.2]} 16. Bd5 {[%clk 0:01:52.9]} 16... Qf6 {[%clk 0:01:51.8]}
17. Ne4 {[%clk 0:01:27.6]} 17... Qxg6 {[%clk 0:01:51.1]} 18. c3 {[%clk
0:01:20.5]} 18... Nc6 {[%clk 0:01:33.6]} 19. Qa4 {[%clk 0:01:04.6]} 19... Rc8
{[%clk 0:01:22.8]} 20. Be3 {[%clk 0:01:02.1]} 20... Be7 {[%clk 0:01:17.5]} 21.
O-O-O {[%clk 0:01:01.2]} 21... Rf8 {[%clk 0:01:14.4]} 22. Rhg1 {[%clk
0:00:55.7]} 22... Qh7 {[%clk 0:01:11]} 23. Be6 {[%clk 0:00:35.7]} 23... Rc7
{[%clk 0:01:05.7]} 24. Bb6 {[%clk 0:00:32.4]} 24... Qxe4 {[%clk 0:00:59.9]} 25.
Qxe4 {[%clk 0:00:32.2]} 1-0

[Event "*** Titled Tuesday Blitz"]
[Site "Chess.com"]
[Date "2018.08.07"]
[Round "4"]
[White "hansen"]
[Black "Korchmar_Vasiliy"]
[Result "1-0"]
[WhiteElo "2657"]
[BlackElo "2611"]
[TimeControl "180+2"]
[EndTime "13:46:37 PDT"]
[Termination "hansen won by resignation"]

1. e4 {[%clk 0:03:00.5]} 1... c5 {[%clk 0:02:59.6]} 2. Nf3 {[%clk 0:03:00.1]}
2... d6 {[%clk 0:03:01]} 3. d4 {[%clk 0:02:54.8]} 3... cxd4 {[%clk 0:03:02.9]}
4. Nxd4 {[%clk 0:02:56.3]} 4... Nf6 {[%clk 0:03:04.2]} 5. Nc3 {[%clk 0:02:57.8]}
5... Nc6 {[%clk 0:03:05.7]} 6. Bg5 {[%clk 0:02:57.7]} 6... e6 {[%clk 0:03:06.8]}
7. Qd2 {[%clk 0:02:47.8]} 7... a6 {[%clk 0:03:07.6]} 8. O-O-O {[%clk 0:02:43.9]}
8... h6 {[%clk 0:03:08.8]} 9. Bf4 {[%clk 0:02:38.6]} 9... Bd7 {[%clk 0:03:06.1]}
10. Nxc6 {[%clk 0:02:28.3]} 10... Bxc6 {[%clk 0:03:08]} 11. Bxd6 {[%clk
0:02:21]} 11... Bxd6 {[%clk 0:02:55.6]} 12. Qxd6 {[%clk 0:02:21.3]} 12... Qxd6
{[%clk 0:02:57.5]} 13. Rxd6 {[%clk 0:02:22.1]} 13... Nxe4 {[%clk 0:02:59]} 14.
Nxe4 {[%clk 0:01:22.1]} 14... Bxe4 {[%clk 0:03:00.9]} 15. Rb6 {[%clk 0:01:17.4]}
15... O-O-O {[%clk 0:02:49]} 16. f3 {[%clk 0:01:13.6]} 16... Bc6 {[%clk
0:02:49.8]} 17. Bd3 {[%clk 0:01:13.2]} 17... Kc7 {[%clk 0:02:49]} 18. Rb4 {[%clk
0:01:13.7]} 18... Rd6 {[%clk 0:02:37.8]} 19. Re1 {[%clk 0:01:12.9]} 19... Rhd8
{[%clk 0:02:37.2]} 20. Rg4 {[%clk 0:01:01.1]} 20... g6 {[%clk 0:01:59.6]} 21.
Rh4 {[%clk 0:00:57.4]} 21... h5 {[%clk 0:01:59.4]} 22. Rf4 {[%clk 0:00:56]}
22... R8d7 {[%clk 0:01:58.9]} 23. h4 {[%clk 0:00:32.3]} 23... Rd4 {[%clk
0:01:59.7]} 24. Rxd4 {[%clk 0:00:32.2]} 24... Rxd4 {[%clk 0:02:01.6]} 25. Rh1
{[%clk 0:00:33.9]} 25... Kd6 {[%clk 0:01:59.5]} 26. Kd2 {[%clk 0:00:35.3]} 26...
Ke5 {[%clk 0:01:50.5]} 27. Ke3 {[%clk 0:00:36.6]} 27... Bb5 {[%clk 0:01:25.2]}
28. Be4 {[%clk 0:00:29.5]} 28... f5 {[%clk 0:01:15]} 29. f4+ {[%clk 0:00:30.5]}
1-0

[Event "*** Titled Tuesday Blitz"]
[Site "Chess.com"]
[Date "2018.08.07"]
[Round "4"]
[White "norwaytoadog"]
[Black "GMCanty"]
[Result "0-1"]
[WhiteElo "2130"]
[BlackElo "2251"]
[TimeControl "180+2"]
[EndTime "13:47:10 PDT"]
[Termination "GMCanty won on time"]

1. e4 {[%clk 0:02:59.3]} 1... c5 {[%clk 0:03:01.1]} 2. Nf3 {[%clk 0:03:00.5]}
2... g6 {[%clk 0:03:02.7]} 3. c3 {[%clk 0:02:57.4]} 3... Bg7 {[%clk 0:03:03.3]}
4. d4 {[%clk 0:02:58.2]} 4... cxd4 {[%clk 0:03:05.2]} 5. cxd4 {[%clk 0:02:59.2]}
5... d5 {[%clk 0:03:06.7]} 6. e5 {[%clk 0:03:00.2]} 6... Bg4 {[%clk 0:03:07.7]}
7. Be3 {[%clk 0:03:00.9]} 7... Nc6 {[%clk 0:03:08.6]} 8. Nc3 {[%clk 0:02:59.9]}
8... e6 {[%clk 0:03:09.5]} 9. Be2 {[%clk 0:02:56.5]} 9... Nge7 {[%clk
0:03:10.6]} 10. h3 {[%clk 0:02:56]} 10... Bxf3 {[%clk 0:03:11.1]} 11. Bxf3
{[%clk 0:02:56.9]} 11... O-O {[%clk 0:03:12.5]} 12. O-O {[%clk 0:02:55.2]} 12...
Nf5 {[%clk 0:03:12.5]} 13. Qd2 {[%clk 0:02:52.2]} 13... f6 {[%clk 0:03:11.7]}
14. exf6 {[%clk 0:02:42.2]} 14... Qxf6 {[%clk 0:03:13.6]} 15. Bg4 {[%clk
0:02:00.9]} 15... Nfxd4 {[%clk 0:03:07.9]} 16. Bg5 {[%clk 0:02:00.2]} 16... Qf7
{[%clk 0:03:06.5]} 17. Rfe1 {[%clk 0:01:52.9]} 17... h5 {[%clk 0:03:06.3]} 18.
Bd1 {[%clk 0:01:48.1]} 18... Ne5 {[%clk 0:03:04]} 19. f4 {[%clk 0:01:40.8]}
19... Nc4 {[%clk 0:03:01]} 20. Qf2 {[%clk 0:01:32.4]} 20... Nf5 {[%clk
0:02:52.9]} 21. Kh1 {[%clk 0:01:17.3]} 21... Bd4 {[%clk 0:02:52.9]} 22. Qf3
{[%clk 0:01:14.5]} 22... Nxb2 {[%clk 0:02:39.1]} 23. Bb3 {[%clk 0:01:10]} 23...
Nc4 {[%clk 0:02:23.2]} 24. Bxc4 {[%clk 0:00:57.6]} 24... dxc4 {[%clk 0:02:25.1]}
25. Rab1 {[%clk 0:00:58.5]} 25... b6 {[%clk 0:02:18]} 26. Ne4 {[%clk 0:00:53.3]}
26... h4 {[%clk 0:02:07.1]} 27. Rbd1 {[%clk 0:00:42]} 27... Rac8 {[%clk
0:02:01.8]} 28. Qg4 {[%clk 0:00:40.6]} 28... c3 {[%clk 0:01:53.5]} 29. Rxd4
{[%clk 0:00:40.2]} 29... Nxd4 {[%clk 0:01:55.2]} 30. Nf6+ {[%clk 0:00:36.3]}
30... Kg7 {[%clk 0:01:53.8]} 31. Nh5+ {[%clk 0:00:21.4]} 31... gxh5 {[%clk
0:01:48.3]} 32. Bf6+ {[%clk 0:00:22.3]} 32... Kh7 {[%clk 0:01:44.7]} 33. Qxh4
{[%clk 0:00:14.4]} 33... Nf5 {[%clk 0:01:40.5]} 34. Qg5 {[%clk 0:00:10.2]} 34...
Rg8 {[%clk 0:01:40.5]} 0-1

[Event "*** Titled Tuesday Blitz"]
[Site "Chess.com"]
[Date "2018.08.07"]
[Round "4"]
[White "Last7Samurai"]
[Black "francogreek"]
[Result "1-0"]
[WhiteElo "2608"]
[BlackElo "2419"]
[TimeControl "180+2"]
[EndTime "13:47:13 PDT"]
[Termination "Last7Samurai won by resignation"]

1. d4 {[%clk 0:03:01.9]} 1... Nf6 {[%clk 0:03:01.1]} 2. Bf4 {[%clk 0:03:02.6]}
2... g6 {[%clk 0:03:00.2]} 3. Nc3 {[%clk 0:03:03.5]} 3... d5 {[%clk 0:03:01.1]}
4. e3 {[%clk 0:03:04.3]} 4... Bg7 {[%clk 0:03:01.8]} 5. h4 {[%clk 0:03:05.7]}
5... h5 {[%clk 0:03:02.5]} 6. Nf3 {[%clk 0:03:05.1]} 6... Bg4 {[%clk 0:03:00.7]}
7. Be2 {[%clk 0:03:06.1]} 7... Bxf3 {[%clk 0:03:00.1]} 8. Bxf3 {[%clk
0:03:07.1]} 8... c6 {[%clk 0:03:01.4]} 9. Qd2 {[%clk 0:03:07.4]} 9... Nbd7
{[%clk 0:03:02.5]} 10. O-O-O {[%clk 0:03:08]} 10... b5 {[%clk 0:03:02.4]} 11.
Kb1 {[%clk 0:03:02.4]} 11... a5 {[%clk 0:03:02.4]} 12. Rde1 {[%clk 0:03:01.2]}
12... b4 {[%clk 0:02:58.3]} 13. Na4 {[%clk 0:03:00.6]} 13... Qc8 {[%clk
0:02:43.9]} 14. e4 {[%clk 0:02:57]} 14... dxe4 {[%clk 0:02:44.2]} 15. Bxe4
{[%clk 0:02:58]} 15... Nxe4 {[%clk 0:02:46.1]} 16. Rxe4 {[%clk 0:02:59.6]} 16...
Nf6 {[%clk 0:02:47.3]} 17. Re2 {[%clk 0:02:59.5]} 17... Nd5 {[%clk 0:02:45.8]}
18. Be5 {[%clk 0:02:58.6]} 18... Bxe5 {[%clk 0:02:39.9]} 19. Rxe5 {[%clk
0:02:56.5]} 19... O-O {[%clk 0:02:32.2]} 20. f3 {[%clk 0:02:51.7]} 20... f6
{[%clk 0:02:29.3]} 21. Ree1 {[%clk 0:02:46.5]} 21... Kg7 {[%clk 0:02:30.5]} 22.
Nc5 {[%clk 0:02:45.3]} 22... Qf5 {[%clk 0:02:28.2]} 23. g4 {[%clk 0:02:39.5]}
23... Qxf3 {[%clk 0:02:06.5]} 24. gxh5 {[%clk 0:02:31.4]} 24... Qxh5 {[%clk
0:02:08.4]} 25. Rhg1 {[%clk 0:02:17]} 25... Rh8 {[%clk 0:01:58.3]} 26. Qg2
{[%clk 0:02:10.7]} 26... Rag8 {[%clk 0:01:45.5]} 27. Qh3 {[%clk 0:01:41]} 27...
Qxh4 {[%clk 0:01:36.1]} 28. Qd7 {[%clk 0:01:41.2]} 28... Re8 {[%clk 0:01:12.4]}
29. Qxc6 {[%clk 0:01:38.6]} 29... Nf4 {[%clk 0:01:03]} 30. Qc7 {[%clk
0:01:31.1]} 30... Nd5 {[%clk 0:00:59.3]} 31. Qd7 {[%clk 0:01:28.4]} 31... Qh5
{[%clk 0:00:47.5]} 32. Ne6+ {[%clk 0:01:28.5]} 32... Kf7 {[%clk 0:00:48.2]} 33.
Ng5+ {[%clk 0:01:30]} 33... fxg5 {[%clk 0:00:43.9]} 34. Qxd5+ {[%clk 0:01:30.7]}
34... Kg7 {[%clk 0:00:45]} 35. Qe5+ {[%clk 0:01:30.5]} 35... Kf7 {[%clk
0:00:33.2]} 36. Ref1+ {[%clk 0:01:27.8]} 36... Kg8 {[%clk 0:00:34.4]} 37. Qe6+
{[%clk 0:01:28.4]} 37... Kg7 {[%clk 0:00:32.2]} 38. Qf7+ {[%clk 0:01:23.8]}
38... Kh6 {[%clk 0:00:33.1]} 39. Rh1 {[%clk 0:01:25.3]} 1-0

[Event "*** Titled Tuesday Blitz"]
[Site "Chess.com"]
[Date "2018.08.07"]
[Round "4"]
[White "Haykos"]
[Black "Zaven_ChessMood"]
[Result "0-1"]
[WhiteElo "2517"]
[BlackElo "2886"]
[TimeControl "180+2"]
[EndTime "13:47:14 PDT"]
[Termination "Zaven_ChessMood won by resignation"]

1. e4 {[%clk 0:03:01.9]} 1... c5 {[%clk 0:02:58.7]} 2. Nf3 {[%clk 0:03:03.3]}
2... d6 {[%clk 0:02:59.8]} 3. Bb5+ {[%clk 0:03:04.9]} 3... Nc6 {[%clk
0:03:00.3]} 4. O-O {[%clk 0:03:05.3]} 4... Bd7 {[%clk 0:03:01.4]} 5. Re1 {[%clk
0:03:04.5]} 5... a6 {[%clk 0:03:01.7]} 6. Bxc6 {[%clk 0:03:05.6]} 6... Bxc6
{[%clk 0:03:02.5]} 7. c3 {[%clk 0:03:06.9]} 7... Nf6 {[%clk 0:03:03.8]} 8. d4
{[%clk 0:03:07.3]} 8... Bxe4 {[%clk 0:03:04]} 9. Bg5 {[%clk 0:02:47.1]} 9...
Bxb1 {[%clk 0:03:02.2]} 10. Rxb1 {[%clk 0:02:43.2]} 10... e6 {[%clk 0:03:03]}
11. d5 {[%clk 0:01:57.9]} 11... e5 {[%clk 0:03:02.9]} 12. b4 {[%clk 0:01:44.9]}
12... c4 {[%clk 0:03:00.2]} 13. Bxf6 {[%clk 0:01:44.5]} 13... Qxf6 {[%clk
0:02:57.2]} 14. b5 {[%clk 0:01:42.9]} 14... a5 {[%clk 0:02:50.8]} 15. Nd2 {[%clk
0:01:41.7]} 15... Be7 {[%clk 0:02:47.8]} 16. Nxc4 {[%clk 0:01:40.4]} 16... O-O
{[%clk 0:02:48.8]} 17. Qa4 {[%clk 0:01:31.8]} 17... Bd8 {[%clk 0:02:47.8]} 18.
b6 {[%clk 0:01:24.8]} 18... Qh4 {[%clk 0:02:47.6]} 19. g3 {[%clk 0:01:23.5]}
19... Qg4 {[%clk 0:02:47.5]} 20. Qb5 {[%clk 0:01:18.5]} 20... Ra6 {[%clk
0:02:38.1]} 21. Nxd6 {[%clk 0:00:39.8]} 21... Rxb6 {[%clk 0:02:38]} 22. Qc4
{[%clk 0:00:41.1]} 22... Rxb1 {[%clk 0:02:29.3]} 23. Rxb1 {[%clk 0:00:40.6]}
23... Qg6 {[%clk 0:02:30.1]} 24. Ne4 {[%clk 0:00:38.2]} 24... b6 {[%clk
0:02:29]} 25. d6 {[%clk 0:00:35.9]} 25... Kh8 {[%clk 0:02:29.7]} 26. Rd1 {[%clk
0:00:31.5]} 26... f5 {[%clk 0:02:30.2]} 27. Nd2 {[%clk 0:00:31.3]} 27... Qxd6
{[%clk 0:02:30.9]} 28. Qe2 {[%clk 0:00:30.6]} 28... Qc5 {[%clk 0:02:30.3]} 29.
Nc4 {[%clk 0:00:28.6]} 29... Bf6 {[%clk 0:02:30.9]} 30. Rb1 {[%clk 0:00:21.3]}
30... Rb8 {[%clk 0:02:20.6]} 31. a4 {[%clk 0:00:20.7]} 31... e4 {[%clk
0:02:14.2]} 32. Rb5 {[%clk 0:00:21.8]} 32... Qc6 {[%clk 0:02:15.1]} 33. Ne3
{[%clk 0:00:19.5]} 33... g6 {[%clk 0:02:14.4]} 34. c4 {[%clk 0:00:20.1]} 34...
Bd4 {[%clk 0:02:13.4]} 35. Nd5 {[%clk 0:00:21]} 35... Qd6 {[%clk 0:02:11.7]} 36.
Kg2 {[%clk 0:00:19.1]} 36... Rc8 {[%clk 0:02:12.2]} 37. Rb1 {[%clk 0:00:17.7]}
37... h5 {[%clk 0:02:12.8]} 38. Rd1 {[%clk 0:00:18.3]} 38... Be5 {[%clk
0:02:07.5]} 39. Qe3 {[%clk 0:00:11.6]} 39... Kh7 {[%clk 0:02:07.5]} 40. Nxb6
{[%clk 0:00:12.4]} 40... Qxd1 {[%clk 0:02:08.2]} 41. Nxc8 {[%clk 0:00:13.6]}
41... h4 {[%clk 0:02:05.5]} 42. h3 {[%clk 0:00:13]} 42... hxg3 {[%clk
0:02:05.7]} 43. fxg3 {[%clk 0:00:14.9]} 43... Bd4 {[%clk 0:02:06.3]} 44. Qf4
{[%clk 0:00:11.8]} 0-1

[Event "*** Titled Tuesday Blitz"]
[Site "Chess.com"]
[Date "2018.08.07"]
[Round "4"]
[White "dretch"]
[Black "Divertissement"]
[Result "1-0"]
[WhiteElo "2762"]
[BlackElo "2564"]
[TimeControl "180+2"]
[EndTime "13:47:15 PDT"]
[Termination "dretch won by resignation"]

1. d4 {[%clk 0:03:01.9]} 1... Nf6 {[%clk 0:02:59]} 2. c4 {[%clk 0:03:03.1]} 2...
g6 {[%clk 0:02:56.7]} 3. Nc3 {[%clk 0:03:04.3]} 3... d5 {[%clk 0:02:58.1]} 4. e3
{[%clk 0:03:04]} 4... c6 {[%clk 0:02:55]} 5. Nf3 {[%clk 0:03:02.3]} 5... Bg7
{[%clk 0:02:55.9]} 6. Be2 {[%clk 0:03:01.7]} 6... O-O {[%clk 0:02:56.5]} 7. O-O
{[%clk 0:03:02.7]} 7... e6 {[%clk 0:02:46.4]} 8. b3 {[%clk 0:03:00.7]} 8... Nbd7
{[%clk 0:02:46.8]} 9. Bb2 {[%clk 0:03:00]} 9... Re8 {[%clk 0:02:46.4]} 10. Qc2
{[%clk 0:02:58.4]} 10... a6 {[%clk 0:02:38.6]} 11. Rad1 {[%clk 0:02:55.5]} 11...
Qe7 {[%clk 0:02:27.6]} 12. Na4 {[%clk 0:02:38.6]} 12... Ne4 {[%clk 0:02:08.8]}
13. Bd3 {[%clk 0:02:30.9]} 13... f5 {[%clk 0:02:03]} 14. c5 {[%clk 0:02:29.1]}
14... e5 {[%clk 0:01:54.3]} 15. Rfe1 {[%clk 0:02:21.7]} 15... Qf6 {[%clk
0:01:18]} 16. Nxe5 {[%clk 0:02:18.5]} 16... Nxe5 {[%clk 0:01:17.6]} 17. dxe5
{[%clk 0:02:19.6]} 17... Qh4 {[%clk 0:01:18.9]} 18. f3 {[%clk 0:02:16.7]} 18...
Ng5 {[%clk 0:01:14.1]} 19. f4 {[%clk 0:02:04.7]} 19... Ne6 {[%clk 0:01:11.5]}
20. Nb6 {[%clk 0:02:01]} 20... Rb8 {[%clk 0:01:12.4]} 21. b4 {[%clk 0:02:02.1]}
21... Kh8 {[%clk 0:01:11.1]} 22. Rf1 {[%clk 0:01:59.5]} 22... Rg8 {[%clk
0:01:10.1]} 23. a3 {[%clk 0:01:53.6]} 23... Nc7 {[%clk 0:00:59.6]} 24. Rf3
{[%clk 0:01:49.2]} 24... Qe7 {[%clk 0:00:58.5]} 25. h3 {[%clk 0:01:43.2]} 25...
Be6 {[%clk 0:00:56.5]} 26. Na4 {[%clk 0:01:40.7]} 26... Rbf8 {[%clk 0:00:56.5]}
27. Nc3 {[%clk 0:01:41.2]} 27... g5 {[%clk 0:00:50.2]} 28. Ne2 {[%clk
0:01:41.6]} 28... g4 {[%clk 0:00:49.8]} 29. hxg4 {[%clk 0:01:42.3]} 29... fxg4
{[%clk 0:00:51.7]} 30. Rff1 {[%clk 0:01:43.2]} 30... Qh4 {[%clk 0:00:45.1]} 31.
g3 {[%clk 0:01:42.3]} 31... Qh5 {[%clk 0:00:43.2]} 32. f5 {[%clk 0:01:35.4]}
32... Bh6 {[%clk 0:00:37.4]} 33. Nf4 {[%clk 0:01:34.2]} 33... Bxf4 {[%clk
0:00:37.5]} 34. Rxf4 {[%clk 0:01:34.9]} 34... d4 {[%clk 0:00:19.7]} 35. e4
{[%clk 0:01:31]} 35... Nd5 {[%clk 0:00:11.4]} 36. exd5 {[%clk 0:01:30.3]} 36...
Bxd5 {[%clk 0:00:12.8]} 37. Qh2 {[%clk 0:01:31.1]} 37... Qg5 {[%clk 0:00:10.4]}
38. e6 {[%clk 0:01:29.7]} 1-0

[Event "*** Titled Tuesday Blitz"]
[Site "Chess.com"]
[Date "2018.08.07"]
[Round "4"]
[White "Parhamov"]
[Black "Abrito99"]
[Result "1-0"]
[WhiteElo "2756"]
[BlackElo "2496"]
[TimeControl "180+2"]
[EndTime "13:47:18 PDT"]
[Termination "Parhamov won by resignation"]

1. e4 {[%clk 0:03:01.3]} 1... c5 {[%clk 0:03:00.5]} 2. Nc3 {[%clk 0:03:01.4]}
2... Nc6 {[%clk 0:03:01.2]} 3. Nf3 {[%clk 0:03:00.9]} 3... e6 {[%clk 0:03:01.4]}
4. d4 {[%clk 0:03:01.5]} 4... cxd4 {[%clk 0:03:03.3]} 5. Nxd4 {[%clk 0:03:03.4]}
5... Qc7 {[%clk 0:03:04]} 6. Be3 {[%clk 0:03:02.9]} 6... a6 {[%clk 0:03:05.2]}
7. Qf3 {[%clk 0:03:02.6]} 7... d6 {[%clk 0:03:00]} 8. O-O-O {[%clk 0:03:03.5]}
8... Bd7 {[%clk 0:03:00.9]} 9. h4 {[%clk 0:03:03.7]} 9... h5 {[%clk 0:02:41.6]}
10. Qg3 {[%clk 0:03:02]} 10... Nf6 {[%clk 0:02:36.8]} 11. f3 {[%clk 0:02:52]}
11... Rc8 {[%clk 0:02:35.2]} 12. Kb1 {[%clk 0:02:52.9]} 12... Ne5 {[%clk
0:02:20.6]} 13. Bg5 {[%clk 0:02:37.9]} 13... b5 {[%clk 0:02:17.1]} 14. Qf2
{[%clk 0:02:33.7]} 14... b4 {[%clk 0:02:13.4]} 15. Nce2 {[%clk 0:02:33.9]} 15...
a5 {[%clk 0:02:08.2]} 16. Nc1 {[%clk 0:02:28.2]} 16... Qb7 {[%clk 0:01:45.7]}
17. Nd3 {[%clk 0:02:21.2]} 17... a4 {[%clk 0:01:41.8]} 18. Qd2 {[%clk
0:02:19.6]} 18... Nxd3 {[%clk 0:01:34.1]} 19. Bxd3 {[%clk 0:02:11.8]} 19... e5
{[%clk 0:00:56.4]} 20. Ne2 {[%clk 0:02:05.6]} 20... Be6 {[%clk 0:00:56.9]} 21.
Rc1 {[%clk 0:02:05.2]} 21... Be7 {[%clk 0:00:56.4]} 22. c4 {[%clk 0:02:02.7]}
22... Nd7 {[%clk 0:00:50.1]} 23. Bxe7 {[%clk 0:02:03.1]} 23... Kxe7 {[%clk
0:00:52]} 24. f4 {[%clk 0:02:02.2]} 24... Bg4 {[%clk 0:00:49.6]} 25. fxe5 {[%clk
0:02:00.3]} 25... dxe5 {[%clk 0:00:49.5]} 26. Ng3 {[%clk 0:01:59.6]} 26... Rh6
{[%clk 0:00:47.7]} 27. Be2 {[%clk 0:01:58.6]} 27... Rd6 {[%clk 0:00:31.3]} 28.
Qg5+ {[%clk 0:01:58.4]} 28... Kf8 {[%clk 0:00:32.3]} 29. Bxg4 {[%clk 0:01:59.1]}
29... hxg4 {[%clk 0:00:32.7]} 30. Nf5 {[%clk 0:01:58.1]} 30... Rg6 {[%clk
0:00:32.3]} 31. Qe7+ {[%clk 0:01:58.9]} 31... Kg8 {[%clk 0:00:33]} 32. Nd6
{[%clk 0:01:55.9]} 32... Rxd6 {[%clk 0:00:33.7]} 33. Qxd6 {[%clk 0:01:56.7]}
33... Qxe4+ {[%clk 0:00:35.2]} 34. Ka1 {[%clk 0:01:58.3]} 34... Nc5 {[%clk
0:00:35.4]} 35. Rhe1 {[%clk 0:01:55.9]} 35... Qa8 {[%clk 0:00:29.1]} 36. Kb1
{[%clk 0:01:53.2]} 36... e4 {[%clk 0:00:30.4]} 37. Rcd1 {[%clk 0:01:50.5]} 37...
Nd3 {[%clk 0:00:30.8]} 38. Re2 {[%clk 0:01:51.7]} 38... Rxc4 {[%clk 0:00:29.3]}
39. Qd7 {[%clk 0:01:51.8]} 39... b3 {[%clk 0:00:23.9]} 40. Rxd3 {[%clk
0:01:51.5]} 1-0

[Event "*** Titled Tuesday Blitz"]
[Site "Chess.com"]
[Date "2018.08.07"]
[Round "4"]
[White "bilelou"]
[Black "krzysztofszczurek"]
[Result "1-0"]
[WhiteElo "2408"]
[BlackElo "2386"]
[TimeControl "180+2"]
[EndTime "13:47:40 PDT"]
[Termination "bilelou won by checkmate"]

1. e4 {[%clk 0:03:01.9]} 1... c5 {[%clk 0:03:00.3]} 2. Nc3 {[%clk 0:02:56.6]}
2... a6 {[%clk 0:02:59.6]} 3. d4 {[%clk 0:02:55.4]} 3... cxd4 {[%clk 0:02:56.5]}
4. Qxd4 {[%clk 0:02:52.5]} 4... Nc6 {[%clk 0:02:53.7]} 5. Qd2 {[%clk 0:02:53.4]}
5... d6 {[%clk 0:02:53.7]} 6. b3 {[%clk 0:02:52.7]} 6... Nf6 {[%clk 0:02:50.8]}
7. Bb2 {[%clk 0:02:47.6]} 7... b5 {[%clk 0:02:41.6]} 8. f3 {[%clk 0:02:43.7]}
8... Bb7 {[%clk 0:02:38.8]} 9. O-O-O {[%clk 0:02:38.5]} 9... Qc7 {[%clk
0:02:28.5]} 10. Kb1 {[%clk 0:02:38.4]} 10... e6 {[%clk 0:02:27.9]} 11. h4 {[%clk
0:02:37]} 11... Be7 {[%clk 0:02:27.6]} 12. g4 {[%clk 0:02:37.4]} 12... O-O-O
{[%clk 0:02:22.1]} 13. g5 {[%clk 0:02:33]} 13... Nd7 {[%clk 0:02:22.4]} 14. Nge2
{[%clk 0:02:31.8]} 14... h6 {[%clk 0:02:15.5]} 15. g6 {[%clk 0:02:32]} 15...
fxg6 {[%clk 0:02:05.2]} 16. Nf4 {[%clk 0:02:32.7]} 16... Nf8 {[%clk 0:02:06.1]}
17. Bh3 {[%clk 0:02:31.8]} 17... Qd7 {[%clk 0:01:48.5]} 18. Ncd5 {[%clk
0:02:22.6]} 18... Kb8 {[%clk 0:01:47.6]} 19. Bxg7 {[%clk 0:02:21.5]} 19... Rh7
{[%clk 0:01:44.5]} 20. Bxf8 {[%clk 0:02:18.2]} 20... Rxf8 {[%clk 0:01:43.5]} 21.
Nxe6 {[%clk 0:02:15.5]} 21... Rxf3 {[%clk 0:01:26.8]} 22. Ng5 {[%clk 0:02:10.5]}
22... Bxg5 {[%clk 0:01:18.1]} 23. Bxd7 {[%clk 0:02:10.8]} 23... Bxd2 {[%clk
0:01:16.7]} 24. Bxc6 {[%clk 0:02:12.7]} 24... Bxc6 {[%clk 0:01:16.1]} 25. Rxd2
{[%clk 0:02:13.3]} 25... Rhf7 {[%clk 0:01:09]} 26. Kb2 {[%clk 0:02:12.8]} 26...
Kb7 {[%clk 0:01:04.1]} 27. Rg1 {[%clk 0:02:11.6]} 27... Bxd5 {[%clk 0:00:59.7]}
28. Rxd5 {[%clk 0:02:11.2]} 28... R7f6 {[%clk 0:01:00.4]} 29. e5 {[%clk
0:02:04.6]} 29... dxe5 {[%clk 0:00:58.5]} 30. Rxe5 {[%clk 0:02:06.5]} 30... R3f4
{[%clk 0:00:55.7]} 31. h5 {[%clk 0:01:59.2]} 31... gxh5 {[%clk 0:00:49.3]} 32.
Rxh5 {[%clk 0:02:01.1]} 32... Rf2 {[%clk 0:00:47.6]} 33. Rc5 {[%clk 0:01:50.7]}
33... Kb6 {[%clk 0:00:46.6]} 34. b4 {[%clk 0:01:48.6]} 34... R2f4 {[%clk
0:00:43.8]} 35. Kb3 {[%clk 0:01:47.9]} 35... Rf3+ {[%clk 0:00:43.5]} 36. c3
{[%clk 0:01:48.1]} 36... Rf2 {[%clk 0:00:40]} 37. Rg8 {[%clk 0:01:45]} 37... Rh2
{[%clk 0:00:33.2]} 38. a4 {[%clk 0:01:41.2]} 38... bxa4+ {[%clk 0:00:27.8]} 39.
Kxa4 {[%clk 0:01:41.2]} 39... Rh3 {[%clk 0:00:20.3]} 40. Rb8+ {[%clk 0:01:40.1]}
40... Ka7 {[%clk 0:00:20.9]} 41. Rbc8 {[%clk 0:01:40.7]} 41... Kb6 {[%clk
0:00:19.9]} 42. Ra8 {[%clk 0:01:33.5]} 42... Rff3 {[%clk 0:00:15.4]} 43. Rb8+
{[%clk 0:01:30.8]} 43... Ka7 {[%clk 0:00:15.3]} 44. Rbc8 {[%clk 0:01:32.3]}
44... Rf6 {[%clk 0:00:13.4]} 45. Ka5 {[%clk 0:01:32.4]} 45... Rh1 {[%clk
0:00:12.6]} 46. R5c7# {[%clk 0:01:32.8]} 1-0